[Event "Titled Tuesday Blitz February 07 Late 2023"]
[White "Bortnyk, Olexandr"]
[Black "Cuenca Jimenez, Jose Fernando"]
[WhiteFideId "14120828"]
[BlackFideId "2255570"]
[WhiteElo "2605"]
[BlackElo "2535"]
[Result "1-0"]
[Round "03"]
[TimeControl "180+2"]
[Date "2023.02.07"]
[WhiteClock "0:01:20"]
[BlackClock "0:00:10"]

1. d4 {[%clk 0:03:00]}  Nf6 {[%clk 0:02:58]} 2. Nc3 {[%clk 0:02:59]}  d6 {[%clk 0:02:57]} 3. e4 {[%clk 0:02:58]}  e5 {[%clk 0:02:58]} 4. Nf3 {[%clk 0:02:58]}  Nbd7 {[%clk 0:02:57]} 5. Bc4 {[%clk 0:02:58]}  Be7 {[%clk 0:02:57]} 6. O-O {[%clk 0:02:58]}  O-O {[%clk 0:02:57]} 7. a4 {[%clk 0:02:58]}  c6 {[%clk 0:02:57]} 8. Re1 {[%clk 0:02:58]}  h6 {[%clk 0:02:57]} 9. b3 {[%clk 0:02:57]}  Re8 {[%clk 0:02:56]} 10. Ba3 {[%clk 0:02:57]}  exd4 {[%clk 0:02:43]} 11. Nxd4 {[%clk 0:02:48]}  Ne5 {[%clk 0:02:42]} 12. Be2 {[%clk 0:02:49]}  Bf8 {[%clk 0:02:35]} 13. Qd2 {[%clk 0:02:39]}  Qa5 {[%clk 0:02:30]} 14. Rad1 {[%clk 0:02:38]}  Ng6 {[%clk 0:02:18]} 15. f3 {[%clk 0:02:32]}  Qg5 {[%clk 0:02:11]} 16. Qxg5 {[%clk 0:02:29]}  hxg5 {[%clk 0:02:12]} 17. Bc1 {[%clk 0:02:29]}  Nf4 {[%clk 0:02:06]} 18. Bf1 {[%clk 0:02:29]}  d5 {[%clk 0:01:40]} 19. g3 {[%clk 0:02:26]}  Bb4 {[%clk 0:01:38]} 20. Bd2 {[%clk 0:02:19]}  Ng6 {[%clk 0:01:10]} 21. exd5 {[%clk 0:02:17]}  Rxe1 {[%clk 0:01:05]} 22. Bxe1 {[%clk 0:02:18]}  cxd5 {[%clk 0:01:04]} 23. Ncb5 {[%clk 0:02:12]}  Bxe1 {[%clk 0:01:02]} 24. Rxe1 {[%clk 0:02:13]}  Bd7 {[%clk 0:01:02]} 25. Bd3 {[%clk 0:02:11]}  Nf8 {[%clk 0:00:57]} 26. Nd6 {[%clk 0:02:08]}  b6 {[%clk 0:00:56]} 27. Re7 {[%clk 0:02:08]}  Be6 {[%clk 0:00:53]} 28. Rb7 {[%clk 0:01:56]}  N8d7 {[%clk 0:00:43]} 29. Bb5 {[%clk 0:01:49]}  Nc5 {[%clk 0:00:40]} 30. Rc7 {[%clk 0:01:49]}  a6 {[%clk 0:00:40]} 31. Be2 {[%clk 0:01:31]}  Rd8 {[%clk 0:00:38]} 32. Nxe6 {[%clk 0:01:31]}  fxe6 {[%clk 0:00:33]} 33. Nf7 {[%clk 0:01:29]}  Rd7 {[%clk 0:00:30]} 34. Rxd7 {[%clk 0:01:29]}  Nfxd7 {[%clk 0:00:29]} 35. Nxg5 {[%clk 0:01:30]}  a5 {[%clk 0:00:29]} 36. f4 {[%clk 0:01:26]}  Kf8 {[%clk 0:00:29]} 37. Kf2 {[%clk 0:01:26]}  Ke7 {[%clk 0:00:30]} 38. Ke3 {[%clk 0:01:27]}  Kd6 {[%clk 0:00:29]} 39. Nf7+ {[%clk 0:01:27]}  Ke7 {[%clk 0:00:29]} 40. Ng5 {[%clk 0:01:26]}  Kd6 {[%clk 0:00:29]} 41. h4 {[%clk 0:01:26]}  e5 {[%clk 0:00:29]} 42. Nf7+ {[%clk 0:01:26]}  Ke6 {[%clk 0:00:29]} 43. Nxe5 {[%clk 0:01:26]}  Nxe5 {[%clk 0:00:30]} 44. fxe5 {[%clk 0:01:27]}  Kxe5 {[%clk 0:00:31]} 45. Bd3 {[%clk 0:01:25]}  d4+ {[%clk 0:00:30]} 46. Kf3 {[%clk 0:01:25]}  Nd7 {[%clk 0:00:26]} 47. g4 {[%clk 0:01:25]}  Nf6 {[%clk 0:00:25]} 48. g5 {[%clk 0:01:25]}  Nd5 {[%clk 0:00:20]} 49. h5 {[%clk 0:01:25]}  Nc3 {[%clk 0:00:09]} 50. h6 {[%clk 0:01:17]}  gxh6 {[%clk 0:00:10]} 51. gxh6 {[%clk 0:01:18]}  Kf6 {[%clk 0:00:10]} 52. h7 {[%clk 0:01:19]}  Kg7 {[%clk 0:00:10]} 53. Kf4 {[%clk 0:01:20]} 1-0


[Site "https://www.chess.com"]

[Event "Titled Tuesday Blitz February 07 Late 2023"]
[White "Koziorowicz, Michal"]
[Black "Dominguez Perez, Leinier"]
[WhiteFideId "21809194"]
[BlackFideId "3503240"]
[WhiteElo "2307"]
[BlackElo "2739"]
[Result "1-0"]
[Round "03"]
[TimeControl "180+2"]
[Date "2023.02.07"]
[WhiteClock "0:00:53"]
[BlackClock "0:00:02"]

1. e4 {[%clk 0:03:00]}  Nf6 {[%clk 0:03:00]} 2. Nc3 {[%clk 0:03:00]}  d5 {[%clk 0:02:58]} 3. exd5 {[%clk 0:03:01]}  Nxd5 {[%clk 0:02:58]} 4. Bc4 {[%clk 0:03:02]}  Nb6 {[%clk 0:02:58]} 5. Bb3 {[%clk 0:03:01]}  Nc6 {[%clk 0:02:58]} 6. Nf3 {[%clk 0:03:00]}  Bf5 {[%clk 0:02:58]} 7. d3 {[%clk 0:03:00]}  e6 {[%clk 0:02:58]} 8. O-O {[%clk 0:03:00]}  Be7 {[%clk 0:02:57]} 9. h3 {[%clk 0:03:00]}  Na5 {[%clk 0:02:56]} 10. Bf4 {[%clk 0:02:57]}  O-O {[%clk 0:02:56]} 11. Re1 {[%clk 0:02:57]}  c6 {[%clk 0:02:52]} 12. Bg3 {[%clk 0:02:52]}  Nxb3 {[%clk 0:02:51]} 13. axb3 {[%clk 0:02:52]}  Nd5 {[%clk 0:02:51]} 14. Ne4 {[%clk 0:02:50]}  a5 {[%clk 0:02:51]} 15. Qe2 {[%clk 0:02:40]}  h6 {[%clk 0:02:50]} 16. Red1 {[%clk 0:02:28]}  b5 {[%clk 0:02:08]} 17. Nd4 {[%clk 0:02:28]}  Nf4 {[%clk 0:02:06]} 18. Bxf4 {[%clk 0:02:19]}  Qxd4 {[%clk 0:02:06]} 19. Bd2 {[%clk 0:02:13]}  a4 {[%clk 0:01:38]} 20. Bc3 {[%clk 0:02:12]}  Qd5 {[%clk 0:01:37]} 21. bxa4 {[%clk 0:02:12]}  bxa4 {[%clk 0:01:33]} 22. Qe3 {[%clk 0:02:11]}  Rfd8 {[%clk 0:01:17]} 23. Qg3 {[%clk 0:02:10]}  Bg6 {[%clk 0:01:17]} 24. Re1 {[%clk 0:02:05]}  Bf8 {[%clk 0:01:17]} 25. Nd2 {[%clk 0:02:03]}  a3 {[%clk 0:01:10]} 26. bxa3 {[%clk 0:02:01]}  Bxa3 {[%clk 0:01:03]} 27. Nc4 {[%clk 0:02:00]}  Bf8 {[%clk 0:00:48]} 28. Ne5 {[%clk 0:01:55]}  Bf5 {[%clk 0:00:36]} 29. Nc4 {[%clk 0:01:47]}  Qb5 {[%clk 0:00:35]} 30. Rab1 {[%clk 0:01:37]}  Qa4 {[%clk 0:00:35]} 31. Rb2 {[%clk 0:01:32]}  Qa6 {[%clk 0:00:35]} 32. Reb1 {[%clk 0:01:28]}  Rac8 {[%clk 0:00:34]} 33. Rb7 {[%clk 0:01:25]}  Qa2 {[%clk 0:00:32]} 34. R7b2 {[%clk 0:01:23]}  Qa6 {[%clk 0:00:30]} 35. Rb7 {[%clk 0:01:23]}  Qa4 {[%clk 0:00:28]} 36. R1b2 {[%clk 0:01:18]}  Qa1+ {[%clk 0:00:24]} 37. Kh2 {[%clk 0:01:18]}  Qa6 {[%clk 0:00:23]} 38. Ne5 {[%clk 0:01:16]}  Qa3 {[%clk 0:00:16]} 39. R2b3 {[%clk 0:01:11]}  Qd6 {[%clk 0:00:16]} 40. Nxf7 {[%clk 0:01:10]}  Qxg3+ {[%clk 0:00:16]} 41. Kxg3 {[%clk 0:01:10]}  Rd5 {[%clk 0:00:16]} 42. Ne5 {[%clk 0:01:08]}  Bd6 {[%clk 0:00:15]} 43. f4 {[%clk 0:01:09]}  g5 {[%clk 0:00:15]} 44. Kf3 {[%clk 0:01:05]}  gxf4 {[%clk 0:00:14]} 45. Nd7 {[%clk 0:01:06]}  Be7 {[%clk 0:00:13]} 46. Nf6+ {[%clk 0:01:05]}  Bxf6 {[%clk 0:00:13]} 47. Bxf6 {[%clk 0:01:06]}  Rb5 {[%clk 0:00:08]} 48. Rg7+ {[%clk 0:00:56]}  Kf8 {[%clk 0:00:08]} 49. Ra3 {[%clk 0:00:57]}  e5 {[%clk 0:00:02]} 50. Raa7 {[%clk 0:00:57]}  Be6 {[%clk 0:00:02]} 51. Rh7 {[%clk 0:00:55]}  Bd5+ {[%clk 0:00:02]} 52. Kf2 {[%clk 0:00:55]}  Bg8 {[%clk 0:00:02]} 53. Rh8 {[%clk 0:00:52]}  Rc5 {[%clk 0:00:02]} 54. Bg7+ {[%clk 0:00:52]}  Ke8 {[%clk 0:00:02]} 55. Rxg8# {[%clk 0:00:53]} 1-0


[Site "https://www.chess.com"]

[Event "Titled Tuesday Blitz February 07 Late 2023"]
[White "Babazada, Khazar"]
[Black "Leiva, Gianmarco"]
[WhiteFideId "13413554"]
[BlackFideId "3804399"]
[WhiteElo "2474"]
[BlackElo "2392"]
[Result "1-0"]
[Round "03"]
[TimeControl "180+2"]
[Date "2023.02.07"]
[WhiteClock "0:00:21"]
[BlackClock "0:00:03"]

1. Nf3 {[%clk 0:03:00]}  d5 {[%clk 0:02:57]} 2. g3 {[%clk 0:02:59]}  Nc6 {[%clk 0:02:57]} 3. Bg2 {[%clk 0:03:00]}  e5 {[%clk 0:02:57]} 4. d3 {[%clk 0:03:01]}  Nf6 {[%clk 0:02:57]} 5. O-O {[%clk 0:03:01]}  Be7 {[%clk 0:02:57]} 6. Nbd2 {[%clk 0:03:01]}  O-O {[%clk 0:02:57]} 7. e4 {[%clk 0:03:02]}  dxe4 {[%clk 0:02:55]} 8. dxe4 {[%clk 0:03:02]}  a5 {[%clk 0:02:45]} 9. c3 {[%clk 0:03:02]}  a4 {[%clk 0:02:43]} 10. Qe2 {[%clk 0:03:02]}  Be6 {[%clk 0:02:30]} 11. Nh4 {[%clk 0:02:54]}  Nd7 {[%clk 0:02:24]} 12. Nf5 {[%clk 0:02:52]}  Bc5 {[%clk 0:02:24]} 13. Nc4 {[%clk 0:02:49]}  Re8 {[%clk 0:02:10]} 14. Be3 {[%clk 0:02:42]}  Bf8 {[%clk 0:02:09]} 15. Rfd1 {[%clk 0:02:23]}  Qc8 {[%clk 0:01:54]} 16. Rd2 {[%clk 0:02:10]}  Nc5 {[%clk 0:01:39]} 17. Bxc5 {[%clk 0:01:49]}  Bxc5 {[%clk 0:01:38]} 18. Nce3 {[%clk 0:01:50]}  Bf8 {[%clk 0:01:33]} 19. Nd5 {[%clk 0:01:46]}  Nb8 {[%clk 0:01:29]} 20. Rad1 {[%clk 0:01:44]}  Nd7 {[%clk 0:01:28]} 21. a3 {[%clk 0:01:22]}  Nc5 {[%clk 0:01:26]} 22. Qg4 {[%clk 0:01:19]}  Kh8 {[%clk 0:01:23]} 23. Qh4 {[%clk 0:01:19]}  Ra6 {[%clk 0:01:02]} 24. Nb4 {[%clk 0:00:57]}  Ra8 {[%clk 0:00:56]} 25. Nd5 {[%clk 0:00:57]}  Ra6 {[%clk 0:00:55]} 26. Bf1 {[%clk 0:00:54]}  Nxe4 {[%clk 0:00:39]} 27. Qxe4 {[%clk 0:00:48]}  Bxf5 {[%clk 0:00:39]} 28. Qe3 {[%clk 0:00:42]}  Rd6 {[%clk 0:00:35]} 29. c4 {[%clk 0:00:36]}  b6 {[%clk 0:00:32]} 30. Nc3 {[%clk 0:00:35]}  Rxd2 {[%clk 0:00:30]} 31. Qxd2 {[%clk 0:00:36]}  Bc5 {[%clk 0:00:24]} 32. Nxa4 {[%clk 0:00:36]}  Bd4 {[%clk 0:00:24]} 33. Bg2 {[%clk 0:00:33]}  c6 {[%clk 0:00:17]} 34. Nc3 {[%clk 0:00:31]}  Qc7 {[%clk 0:00:15]} 35. Ne4 {[%clk 0:00:27]}  h6 {[%clk 0:00:14]} 36. b4 {[%clk 0:00:25]}  Ra8 {[%clk 0:00:13]} 37. Qd3 {[%clk 0:00:25]}  Qa7 {[%clk 0:00:11]} 38. Qf3 {[%clk 0:00:23]}  Be6 {[%clk 0:00:10]} 39. Nd6 {[%clk 0:00:23]}  Qc7 {[%clk 0:00:08]} 40. Nb5 {[%clk 0:00:18]}  Qc8 {[%clk 0:00:03]} 41. Nxd4 {[%clk 0:00:18]}  exd4 {[%clk 0:00:03]} 42. Rxd4 {[%clk 0:00:19]}  c5 {[%clk 0:00:03]} 43. Qxa8 {[%clk 0:00:19]}  Qxa8 {[%clk 0:00:03]} 44. Bxa8 {[%clk 0:00:20]}  cxd4 {[%clk 0:00:04]} 45. c5 {[%clk 0:00:21]}  bxc5 {[%clk 0:00:03]} 46. bxc5 {[%clk 0:00:22]}  d3 {[%clk 0:00:04]} 47. Kf1 {[%clk 0:00:21]}  Kg8 {[%clk 0:00:01]} 48. Ke1 {[%clk 0:00:21]}  Kf8 {[%clk 0:00:02]} 49. Kd2 {[%clk 0:00:21]}  Bd5 {[%clk 0:00:03]} 50. Bxd5 {[%clk 0:00:21]} 1-0


[Site "https://www.chess.com"]

[Event "Titled Tuesday Blitz February 07 Late 2023"]
[White "Esipenko, Andrey"]
[Black "Dourerassou, Jonathan"]
[WhiteFideId "24175439"]
[BlackFideId "628050"]
[WhiteElo "2679"]
[BlackElo "2414"]
[Result "0-1"]
[Round "03"]
[TimeControl "180+2"]
[Date "2023.02.07"]
[WhiteClock "0:00:10"]
[BlackClock "0:00:16"]

1. e4 {[%clk 0:03:00]}  d5 {[%clk 0:03:00]} 2. exd5 {[%clk 0:03:00]}  Qxd5 {[%clk 0:03:01]} 3. Nf3 {[%clk 0:02:59]}  Bg4 {[%clk 0:02:59]} 4. Be2 {[%clk 0:02:59]}  Nc6 {[%clk 0:02:55]} 5. O-O {[%clk 0:02:54]}  O-O-O {[%clk 0:02:52]} 6. Nc3 {[%clk 0:02:52]}  Qd7 {[%clk 0:02:51]} 7. b4 {[%clk 0:02:45]}  e5 {[%clk 0:02:39]} 8. b5 {[%clk 0:02:36]}  Bxf3 {[%clk 0:02:39]} 9. Bxf3 {[%clk 0:02:35]}  Nd4 {[%clk 0:02:39]} 10. a4 {[%clk 0:02:25]}  Bb4 {[%clk 0:02:28]} 11. Nd5 {[%clk 0:01:41]}  Nxf3+ {[%clk 0:02:19]} 12. Qxf3 {[%clk 0:01:41]}  Qxd5 {[%clk 0:02:18]} 13. Qg4+ {[%clk 0:01:41]}  f5 {[%clk 0:02:13]} 14. Qxb4 {[%clk 0:01:42]}  Nf6 {[%clk 0:02:07]} 15. d3 {[%clk 0:01:43]}  e4 {[%clk 0:01:52]} 16. a5 {[%clk 0:01:27]}  exd3 {[%clk 0:01:47]} 17. cxd3 {[%clk 0:01:24]}  Qd4 {[%clk 0:01:42]} 18. Qxd4 {[%clk 0:00:57]}  Rxd4 {[%clk 0:01:42]} 19. Be3 {[%clk 0:00:57]}  Rxd3 {[%clk 0:01:41]} 20. Bxa7 {[%clk 0:00:58]}  Rb3 {[%clk 0:01:35]} 21. Rfb1 {[%clk 0:00:45]}  Rxb1+ {[%clk 0:01:32]} 22. Rxb1 {[%clk 0:00:46]}  Rd8 {[%clk 0:01:32]} 23. h3 {[%clk 0:00:44]}  Ne4 {[%clk 0:01:28]} 24. Be3 {[%clk 0:00:41]}  Nc3 {[%clk 0:01:25]} 25. Rb3 {[%clk 0:00:40]}  Rd1+ {[%clk 0:01:25]} 26. Kh2 {[%clk 0:00:40]}  Nd5 {[%clk 0:01:26]} 27. Bc5 {[%clk 0:00:34]}  Ra1 {[%clk 0:01:08]} 28. Ba3 {[%clk 0:00:31]}  Ra2 {[%clk 0:01:01]} 29. a6 {[%clk 0:00:22]}  Kb8 {[%clk 0:00:56]} 30. Rd3 {[%clk 0:00:17]}  c6 {[%clk 0:00:56]} 31. axb7 {[%clk 0:00:04]}  Kxb7 {[%clk 0:00:57]} 32. bxc6+ {[%clk 0:00:02]}  Kxc6 {[%clk 0:00:58]} 33. Kg3 {[%clk 0:00:02]}  g5 {[%clk 0:00:54]} 34. Bc1 {[%clk 0:00:02]}  f4+ {[%clk 0:00:45]} 35. Kf3 {[%clk 0:00:03]}  Rc2 {[%clk 0:00:46]} 36. Bd2 {[%clk 0:00:02]}  h5 {[%clk 0:00:43]} 37. g3 {[%clk 0:00:02]}  Rc4 {[%clk 0:00:26]} 38. g4 {[%clk 0:00:01]}  h4 {[%clk 0:00:22]} 39. Ra3 {[%clk 0:00:01]}  Rc2 {[%clk 0:00:13]} 40. Ke2 {[%clk 0:00:02]}  Kd6 {[%clk 0:00:07]} 41. Kd3 {[%clk 0:00:02]}  Rc6 {[%clk 0:00:05]} 42. Ra5 {[%clk 0:00:02]}  Ke6 {[%clk 0:00:05]} 43. Kd4 {[%clk 0:00:02]}  Rd6 {[%clk 0:00:05]} 44. Kd3 {[%clk 0:00:01]}  Ne3+ {[%clk 0:00:05]} 45. Ke2 {[%clk 0:00:01]}  Rxd2+ {[%clk 0:00:05]} 46. Kxd2 {[%clk 0:00:01]}  Nc4+ {[%clk 0:00:05]} 47. Kd3 {[%clk 0:00:01]}  Nxa5 {[%clk 0:00:06]} 48. Ke4 {[%clk 0:00:01]}  Nc6 {[%clk 0:00:07]} 49. Kd3 {[%clk 0:00:01]}  Ne5+ {[%clk 0:00:08]} 50. Ke4 {[%clk 0:00:01]}  Ng6 {[%clk 0:00:08]} 51. Kd4 {[%clk 0:00:01]}  Ne7 {[%clk 0:00:08]} 52. Ke4 {[%clk 0:00:02]}  Nd5 {[%clk 0:00:09]} 53. Kd4 {[%clk 0:00:02]}  Nf6 {[%clk 0:00:09]} 54. f3 {[%clk 0:00:02]}  Kd6 {[%clk 0:00:09]} 55. Kc4 {[%clk 0:00:02]}  Ke5 {[%clk 0:00:10]} 56. Kd3 {[%clk 0:00:02]}  Nd5 {[%clk 0:00:11]} 57. Kc4 {[%clk 0:00:03]}  Ne3+ {[%clk 0:00:11]} 58. Kd3 {[%clk 0:00:04]}  Nf1 {[%clk 0:00:12]} 59. Ke2 {[%clk 0:00:03]}  Ne3 {[%clk 0:00:12]} 60. Kd3 {[%clk 0:00:04]}  Kd5 {[%clk 0:00:12]} 61. Kc3 {[%clk 0:00:04]}  Nc4 {[%clk 0:00:12]} 62. Kd3 {[%clk 0:00:04]}  Ne5+ {[%clk 0:00:13]} 63. Ke2 {[%clk 0:00:05]}  Kd4 {[%clk 0:00:14]} 64. Kf2 {[%clk 0:00:05]}  Kd3 {[%clk 0:00:14]} 65. Kg2 {[%clk 0:00:06]}  Ke3 {[%clk 0:00:15]} 66. Kh1 {[%clk 0:00:06]}  Nxf3 {[%clk 0:00:16]} 67. Kg2 {[%clk 0:00:07]}  Ne5 {[%clk 0:00:17]} 68. Kh1 {[%clk 0:00:08]}  Ke2 {[%clk 0:00:17]} 69. Kg2 {[%clk 0:00:08]}  f3+ {[%clk 0:00:18]} 70. Kg1 {[%clk 0:00:09]}  f2+ {[%clk 0:00:18]} 71. Kh2 {[%clk 0:00:09]}  Nf3+ {[%clk 0:00:17]} 72. Kh1 {[%clk 0:00:10]}  f1=Q# {[%clk 0:00:16]} 0-1


[Site "https://www.chess.com"]

[Event "Titled Tuesday Blitz February 07 Late 2023"]
[White "Yoo, Christopher Woojin"]
[Black "Tan, Zhongyi"]
[WhiteFideId "30909694"]
[BlackFideId "8603642"]
[WhiteElo "2607"]
[BlackElo "2517"]
[Result "1-0"]
[Round "03"]
[TimeControl "180+2"]
[Date "2023.02.07"]
[WhiteClock "0:00:37"]
[BlackClock "0:00:06"]

1. e4 {[%clk 0:03:00]}  c5 {[%clk 0:02:58]} 2. Nf3 {[%clk 0:03:00]}  d6 {[%clk 0:02:59]} 3. d4 {[%clk 0:03:00]}  cxd4 {[%clk 0:02:59]} 4. Nxd4 {[%clk 0:03:01]}  Nf6 {[%clk 0:03:00]} 5. Nc3 {[%clk 0:03:02]}  g6 {[%clk 0:03:00]} 6. Be3 {[%clk 0:02:56]}  Bg7 {[%clk 0:03:00]} 7. f3 {[%clk 0:02:54]}  O-O {[%clk 0:03:01]} 8. Qd2 {[%clk 0:02:53]}  Nc6 {[%clk 0:03:01]} 9. O-O-O {[%clk 0:02:48]}  d5 {[%clk 0:03:01]} 10. Qe1 {[%clk 0:02:43]}  e5 {[%clk 0:03:00]} 11. Nxc6 {[%clk 0:02:38]}  bxc6 {[%clk 0:03:01]} 12. exd5 {[%clk 0:02:37]}  Nxd5 {[%clk 0:03:00]} 13. Bc4 {[%clk 0:02:35]}  Be6 {[%clk 0:02:57]} 14. Kb1 {[%clk 0:02:34]}  Qc7 {[%clk 0:02:53]} 15. Bc5 {[%clk 0:02:19]}  Rfd8 {[%clk 0:02:50]} 16. Ne4 {[%clk 0:02:18]}  Nf4 {[%clk 0:02:45]} 17. Bxe6 {[%clk 0:02:14]}  Nxe6 {[%clk 0:02:46]} 18. Bd6 {[%clk 0:02:09]}  Qb6 {[%clk 0:02:45]} 19. Qh4 {[%clk 0:02:01]}  c5 {[%clk 0:02:07]} 20. Be7 {[%clk 0:01:05]}  Rxd1+ {[%clk 0:01:41]} 21. Rxd1 {[%clk 0:01:04]}  Rb8 {[%clk 0:01:33]} 22. b3 {[%clk 0:01:02]}  c4 {[%clk 0:01:06]} 23. Nf6+ {[%clk 0:00:59]}  Bxf6 {[%clk 0:01:05]} 24. Bxf6 {[%clk 0:01:00]}  cxb3 {[%clk 0:01:03]} 25. axb3 {[%clk 0:01:01]}  Qe3 {[%clk 0:00:53]} 26. Qe4 {[%clk 0:00:54]}  Qxe4 {[%clk 0:00:26]} 27. fxe4 {[%clk 0:00:55]}  Rb4 {[%clk 0:00:25]} 28. Re1 {[%clk 0:00:48]}  Nc5 {[%clk 0:00:16]} 29. Bxe5 {[%clk 0:00:47]}  Rxe4 {[%clk 0:00:12]} 30. Rxe4 {[%clk 0:00:45]}  Nxe4 {[%clk 0:00:13]} 31. c4 {[%clk 0:00:45]}  f5 {[%clk 0:00:12]} 32. Kc2 {[%clk 0:00:44]}  Kf7 {[%clk 0:00:12]} 33. b4 {[%clk 0:00:44]}  Ke6 {[%clk 0:00:11]} 34. Bd4 {[%clk 0:00:43]}  a6 {[%clk 0:00:12]} 35. Kd3 {[%clk 0:00:43]}  Nd6 {[%clk 0:00:11]} 36. Bc5 {[%clk 0:00:39]}  Nb7 {[%clk 0:00:11]} 37. Be3 {[%clk 0:00:39]}  Nd6 {[%clk 0:00:10]} 38. Bf4 {[%clk 0:00:39]}  Ne4 {[%clk 0:00:10]} 39. Kd4 {[%clk 0:00:39]}  g5 {[%clk 0:00:09]} 40. Bc1 {[%clk 0:00:38]}  h5 {[%clk 0:00:08]} 41. b5 {[%clk 0:00:38]}  axb5 {[%clk 0:00:09]} 42. cxb5 {[%clk 0:00:38]}  Kd6 {[%clk 0:00:09]} 43. b6 {[%clk 0:00:39]}  Kc6 {[%clk 0:00:09]} 44. Ke5 {[%clk 0:00:39]}  Nf2 {[%clk 0:00:08]} 45. Kxf5 {[%clk 0:00:39]}  g4 {[%clk 0:00:08]} 46. Be3 {[%clk 0:00:36]}  Nd1 {[%clk 0:00:07]} 47. Bd4 {[%clk 0:00:37]}  g3 {[%clk 0:00:05]} 48. hxg3 {[%clk 0:00:36]}  Kb7 {[%clk 0:00:06]} 49. Kg5 {[%clk 0:00:37]} 1-0


[Site "https://www.chess.com"]

[Event "Titled Tuesday Blitz February 07 Late 2023"]
[White "Dardha, Daniel"]
[Black "Sokolovsky, Yahli"]
[WhiteFideId "240990"]
[BlackFideId "2820242"]
[WhiteElo "2631"]
[BlackElo "2461"]
[Result "1-0"]
[Round "03"]
[TimeControl "180+2"]
[Date "2023.02.07"]
[WhiteClock "0:02:06"]
[BlackClock "0:00:38"]

1. Nf3 {[%clk 0:02:59]}  d5 {[%clk 0:02:56]} 2. e3 {[%clk 0:02:59]}  Bg4 {[%clk 0:02:51]} 3. c4 {[%clk 0:02:58]}  Bxf3 {[%clk 0:02:27]} 4. Qxf3 {[%clk 0:02:56]}  e6 {[%clk 0:02:24]} 5. Nc3 {[%clk 0:02:53]}  c6 {[%clk 0:02:25]} 6. d4 {[%clk 0:02:48]}  Nd7 {[%clk 0:02:23]} 7. Bd3 {[%clk 0:02:47]}  f5 {[%clk 0:02:23]} 8. g4 {[%clk 0:02:46]}  fxg4 {[%clk 0:02:15]} 9. Qxg4 {[%clk 0:02:47]}  Qf6 {[%clk 0:02:08]} 10. Bd2 {[%clk 0:02:31]}  O-O-O {[%clk 0:01:49]} 11. O-O-O {[%clk 0:02:20]}  Nh6 {[%clk 0:01:42]} 12. Qh3 {[%clk 0:02:16]}  Bd6 {[%clk 0:01:12]} 13. e4 {[%clk 0:02:11]}  Bf4 {[%clk 0:00:58]} 14. exd5 {[%clk 0:02:08]}  exd5 {[%clk 0:00:55]} 15. cxd5 {[%clk 0:02:04]}  cxd5 {[%clk 0:00:39]} 16. Nxd5 {[%clk 0:02:05]}  Bxd2+ {[%clk 0:00:38]} 17. Rxd2 {[%clk 0:02:05]}  Qc6+ {[%clk 0:00:38]} 18. Rc2 {[%clk 0:02:06]} 1-0


[Site "https://www.chess.com"]

[Event "Titled Tuesday Blitz February 07 Late 2023"]
[White "Fiorito, Joaquin"]
[Black "Makhnev, Denis"]
[WhiteFideId "180173"]
[BlackFideId "13707647"]
[WhiteElo "2405"]
[BlackElo "2483"]
[Result "1/2-1/2"]
[Round "03"]
[TimeControl "180+2"]
[Date "2023.02.07"]
[WhiteClock "0:00:08"]
[BlackClock "0:00:06"]

1. d4 {[%clk 0:03:00]}  Nf6 {[%clk 0:02:59]} 2. Nc3 {[%clk 0:03:00]}  d5 {[%clk 0:02:59]} 3. Bf4 {[%clk 0:03:01]}  e6 {[%clk 0:03:00]} 4. Nb5 {[%clk 0:03:01]}  Na6 {[%clk 0:03:00]} 5. e3 {[%clk 0:03:01]}  c6 {[%clk 0:03:00]} 6. Nc3 {[%clk 0:03:01]}  Bb4 {[%clk 0:03:00]} 7. Bxa6 {[%clk 0:03:00]}  bxa6 {[%clk 0:03:01]} 8. Nf3 {[%clk 0:03:01]}  Ne4 {[%clk 0:02:41]} 9. O-O {[%clk 0:03:00]}  Nxc3 {[%clk 0:02:39]} 10. bxc3 {[%clk 0:03:01]}  Be7 {[%clk 0:02:38]} 11. Ne5 {[%clk 0:03:00]}  c5 {[%clk 0:02:20]} 12. Rb1 {[%clk 0:02:16]}  O-O {[%clk 0:02:17]} 13. Nc6 {[%clk 0:02:06]}  Qe8 {[%clk 0:02:17]} 14. Nxe7+ {[%clk 0:02:06]}  Qxe7 {[%clk 0:02:18]} 15. Qc1 {[%clk 0:02:07]}  c4 {[%clk 0:02:04]} 16. Qb2 {[%clk 0:02:06]}  Qf6 {[%clk 0:02:04]} 17. Qa3 {[%clk 0:02:03]}  Bd7 {[%clk 0:01:14]} 18. Qxa6 {[%clk 0:01:54]}  Qg6 {[%clk 0:01:14]} 19. Rb2 {[%clk 0:01:46]}  h5 {[%clk 0:01:01]} 20. h3 {[%clk 0:01:38]}  h4 {[%clk 0:00:57]} 21. Rfb1 {[%clk 0:01:31]}  Rfc8 {[%clk 0:00:42]} 22. a4 {[%clk 0:00:37]}  Be8 {[%clk 0:00:22]} 23. Bb8 {[%clk 0:00:31]}  Rd8 {[%clk 0:00:15]} 24. Qa5 {[%clk 0:00:15]}  Rc8 {[%clk 0:00:14]} 25. Qa6 {[%clk 0:00:14]}  Bd7 {[%clk 0:00:09]} 26. Bf4 {[%clk 0:00:12]}  Be8 {[%clk 0:00:06]} 27. Bb8 {[%clk 0:00:08]} 1/2-1/2


[Site "https://www.chess.com"]